fUSD/lending_fUSD_20250109
["ID","MTS","AMOUNT","RATE_DAILY","PERIOD"]
[348299011,1736437833821,-500.0,9.798e-05,2]
[348299013,1736437833831,-586.89856661,9.798e-05,2]
[348299015,1736437833841,-1538.64465636,9.798e-05,2]
[348299017,1736437833853,-2606.96534364,9.798e-05,2]
[348299018,1736437833863,-500.0,9.798e-05,2]
[348299019,1736437833874,-454.27804712,9.798e-05,2]
[348299020,1736437833884,-500.0,9.798e-05,2]
[348299021,1736437833893,-500.0,9.798e-05,2]
[348299022,1736437833904,-1138.44,9.798e-05,2]
[348299023,1736437833915,-636.70667932,9.798e-05,2]
[348299024,1736437833924,-500.0,9.798e-05,2]
[348299025,1736437833935,-2781.54,9.798e-05,2]
[348299026,1736437833947,-500.0,9.798e-05,2]
[348299027,1736437833958,-500.0,9.798e-05,2]
[348299028,1736437833969,-500.0,9.798e-05,2]
[348299029,1736437833979,-500.0,9.798e-05,2]
[348299030,1736437833990,-500.0,9.798e-05,2]
[348299031,1736437834000,-500.0,9.798e-05,2]
[348299032,1736437834011,-508.26639671,9.798e-05,2]
[348299033,1736437834023,-5629.19360329,9.798e-05,2]
[348299034,1736437834034,-500.0,9.798e-05,2]
[348299035,1736437834044,-500.0,9.798e-05,2]
[348299036,1736437834054,-500.0,9.798e-05,2]
[348299037,1736437834067,-500.0,9.798e-05,2]
[348299038,1736437834078,-306.30650218,9.798e-05,2]
[348299039,1736437834091,-193.69349782,9.798e-05,2]
[348299040,1736437834102,-500.0,9.798e-05,2]
[348299041,1736437834112,-556.31,9.798e-05,2]
[348299042,1736437834125,-500.0,9.798e-05,2]
[348299043,1736437834135,-500.0,9.798e-05,2]
[348299044,1736437834150,-500.0,9.798e-05,2]
[348299045,1736437834160,-500.0,9.798e-05,2]
[348299046,1736437834170,-500.0,9.798e-05,2]
[348299047,1736437834180,-500.0,9.798e-05,2]
[348299048,1736437834191,-1319.9,9.798e-05,2]
[348299049,1736437834201,-503.01334532,9.798e-05,2]
[348299050,1736437834210,-500.0,9.798e-05,2]
[348299051,1736437834220,-500.0,9.798e-05,2]
[348299052,1736437834230,-500.0,9.798e-05,2]
[348299053,1736437834240,-500.0,9.798e-05,2]
[348299054,1736437834250,-500.0,9.798e-05,2]
[348299055,1736437834259,-500.0,9.798e-05,2]
[348299056,1736437834270,-500.0,9.798e-05,2]
[348299057,1736437834281,-692.6,9.798e-05,2]
[348299058,1736437834291,-500.0,9.798e-05,2]
[348299059,1736437834300,-1338.96,9.798e-05,2]
[348299060,1736437834313,-500.0,9.798e-05,2]
[348299061,1736437834324,-500.0,9.798e-05,2]
[348299062,1736437834338,-3724.83,9.798e-05,2]
[348299063,1736437834348,-500.0,9.798e-05,2]
[348299064,1736437834358,-500.0,9.799e-05,2]
[348299065,1736437834370,-825.79,9.799e-05,2]
[348299066,1736437834382,-500.0,9.799e-05,2]
[348299067,1736437834392,-500.0,9.799e-05,2]
[348299068,1736437834402,-500.0,9.799e-05,2]
[348299069,1736437834413,-624.02,9.799e-05,2]
[348299070,1736437834424,-876.1,9.799e-05,2]
[348299071,1736437834436,-500.0,9.799e-05,2]
[348299072,1736437834446,-500.0,9.799e-05,2]
[348299073,1736437834456,-500.65433567,9.799e-05,2]
[348299074,1736437834467,-500.0,9.799e-05,2]
[348299075,1736437834478,-500.0,9.799e-05,2]
[348299076,1736437834488,-1248.42,9.799e-05,2]
[348299077,1736437834499,-500.48833845,9.799e-05,2]
[348299078,1736437834509,-500.50102348,9.799e-05,2]
[348299079,1736437834519,-500.0,9.799e-05,2]
[348299080,1736437834530,-500.0,9.799e-05,2]
[348299081,1736437834539,-718.0,9.799e-05,2]
[348299082,1736437834549,-500.31768155,9.799e-05,2]
[348299083,1736437834560,-500.0,9.799e-05,2]
[348299084,1736437834571,-500.0,9.799e-05,2]
[348299085,1736437834580,-500.0,9.799e-05,2]
[348299086,1736437834591,-889.26,9.799e-05,2]
[348299087,1736437834600,-471.52733701,9.799e-05,2]
[348299088,1736437834610,-500.0,9.799e-05,2]
[348299089,1736437834620,-500.45813681,9.799e-05,2]
[348299090,1736437834631,-500.0,9.799e-05,2]
[348299091,1736437834641,-434.97513068,9.799e-05,2]
[348299092,1736437834650,-559.42,9.799e-05,2]
[348299093,1736437834660,-500.0,9.799e-05,2]
[348299094,1736437834671,-500.0,9.799e-05,2]
[348299095,1736437834681,-500.0,9.799e-05,2]
[348299096,1736437834691,-500.0,9.799e-05,2]
[348299097,1736437834701,-500.0,9.799e-05,2]
[348299098,1736437834713,-313.67935479,9.799e-05,2]
[348299099,1736437834726,-788.89592621,9.799e-05,2]
[348299100,1736437834737,-500.0,9.799e-05,2]
[348299101,1736437834748,-500.0,9.799e-05,2]
[348299102,1736437834759,-500.0,9.799e-05,2]
[348299103,1736437834769,-545.86,9.799e-05,2]
[348299104,1736437834779,-155.234762,9.799e-05,2]
[348299105,1736437834789,-155.831045,9.799e-05,2]
[348299106,1736437834799,-876.72,9.799e-05,2]
[348299107,1736437834811,-1116.66,9.799e-05,2]
[348299108,1736437834820,-500.0,9.799e-05,2]
[348299109,1736437834831,-500.0,9.799e-05,2]
[348299110,1736437834841,-500.0,9.799e-05,2]
[348299111,1736437834851,-317.39400158,9.799e-05,2]
[348299112,1736437834861,-500.0,9.799e-05,2]
[348299113,1736437834871,-391.25837368,9.799e-05,2]
[348299114,1736437834881,-1083.177485,9.799e-05,2]
[348299115,1736437834890,-1134.47,9.799e-05,2]
[348299116,1736437834900,-500.0,9.799e-05,2]
[348299117,1736437834909,-500.0,9.799e-05,2]
[348299118,1736437834919,-500.0,9.799e-05,2]
[348299119,1736437834933,-1112.24,9.799e-05,2]
[348299120,1736437834943,-500.0,9.799e-05,2]
[348299121,1736437834954,-500.0,9.799e-05,2]
[348299122,1736437834963,-500.0,9.799e-05,2]
[348299123,1736437834974,-406.25393031,9.799e-05,2]
[348299124,1736437834984,-500.0,9.799e-05,2]
[348299125,1736437834994,-541.03,9.799e-05,2]
[348299126,1736437835005,-500.0,9.799e-05,2]
[348299127,1736437835015,-500.0,9.799e-05,2]
[348299128,1736437835025,-564.32,9.799e-05,2]
[348299129,1736437835035,-500.0,9.799e-05,2]
[348299130,1736437835044,-1908.0,9.799e-05,2]
[348299131,1736437835053,-500.0,9.799e-05,2]
[348299132,1736437835065,-500.0,9.799e-05,2]
[348299133,1736437835075,-500.0,9.799e-05,2]
[348299134,1736437835085,-500.0,9.799e-05,2]
[348299135,1736437835094,-500.0,9.799e-05,2]
[348299136,1736437835103,-1483.45,9.799e-05,2]
[348299137,1736437835113,-500.0,9.799e-05,2]
[348299138,1736437835123,-500.0,9.799e-05,2]
[348299139,1736437835133,-500.0,9.799e-05,2]
[348299140,1736437835143,-1364.27,9.799e-05,2]
[348299141,1736437835153,-1530.13,9.799e-05,2]
[348299142,1736437835163,-441.09059053,9.799e-05,2]
[348299143,1736437835172,-500.0,9.799e-05,2]
[348299144,1736437835181,-387.9822189,9.799e-05,2]
[348299145,1736437835192,-500.0,9.799e-05,2]
[348299146,1736437835202,-690.28,9.799e-05,2]
[348299147,1736437835211,-500.0,9.799e-05,2]
[348299148,1736437835221,-1083.83,9.799e-05,2]
[348299149,1736437835231,-169.03203533,9.799e-05,2]
[348299150,1736437835244,-330.96796467,9.799e-05,2]
[348299151,1736437835254,-500.0,9.799e-05,2]
[348299152,1736437835264,-242.42792025,9.799e-05,2]
[348299153,1736437835278,-645.4187373,9.799e-05,2]
[348299154,1736437835289,-22.37334245,9.799e-05,2]
[348299155,1736437835299,-500.0,9.799e-05,2]
[348299156,1736437835311,-5518.61,9.799e-05,2]
[348299157,1736437835320,-500.0,9.799e-05,2]
[348299158,1736437835331,-500.0,9.799e-05,2]
[348299159,1736437835343,-569.9,9.799e-05,2]
[348299160,1736437835354,-1635.18,9.799e-05,2]
[348299161,1736437835364,-3402.65,9.799e-05,2]
[348299162,1736437835373,-682.34,9.799e-05,2]
[348299163,1736437835383,-500.0,9.799e-05,2]
[348299164,1736437835393,-581.23,9.799e-05,2]
[348299165,1736437835402,-1149.39,9.799e-05,2]
[348299166,1736437835412,-500.0,9.799e-05,2]
[348299167,1736437835423,-500.0,9.799e-05,2]
[348299168,1736437835433,-500.0,9.799e-05,2]
[348299169,1736437835442,-500.0,9.799e-05,2]
[348299170,1736437835451,-500.0,9.799e-05,2]
[348299171,1736437835460,-519.97,9.799e-05,2]
[348299172,1736437835469,-1160.32,9.799e-05,2]
[348299173,1736437835669,-500.0,9.799e-05,2]
[348299174,1736437835722,-1700.75,9.799e-05,2]
[348299175,1736437835733,-500.0,9.799e-05,2]
[348299176,1736437835743,-500.0,9.799e-05,2]
[348299177,1736437835753,-951.67,9.799e-05,2]
[348299178,1736437835763,-1183.14,9.799e-05,2]
[348299179,1736437835772,-500.0,9.799e-05,2]
[348299180,1736437835782,-1476.48,9.799e-05,2]
[348299181,1736437835792,-500.0,9.799e-05,2]
[348299182,1736437835801,-500.0,9.799e-05,2]
[348299183,1736437835813,-869.53,9.799e-05,2]
[348299184,1736437835824,-1640.08,9.799e-05,2]
[348299185,1736437835833,-1273.91,9.799e-05,2]
[348299186,1736437835843,-500.0,9.799e-05,2]
[348299187,1736437835852,-500.0,9.799e-05,2]
[348299188,1736437835862,-159.58485431,9.799e-05,2]
[348299189,1736437835872,-1740.11,9.799e-05,2]
[348299190,1736437835882,-1206.43,9.799e-05,2]
[348299191,1736437835892,-500.0,9.799e-05,2]
[348299192,1736437835902,-1273.09,9.799e-05,2]
[348299193,1736437835912,-3423.84,9.799e-05,2]
[348299194,1736437835923,-641.57,9.799e-05,2]
[348299195,1736437835933,-722.13,9.799e-05,2]
[348299196,1736437835943,-5257.23,9.799e-05,2]
[348299197,1736437835953,-500.0,9.799e-05,2]
[348299198,1736437835963,-2463.66,9.799e-05,2]
[348299199,1736437835973,-500.0,9.799e-05,2]
[348299200,1736437835983,-500.0,9.799e-05,2]
[348299201,1736437835992,-1173.77,9.799e-05,2]
[348299202,1736437836002,-2471.46,9.799e-05,2]
[348299203,1736437836012,-4437.1,9.799e-05,2]
[348299204,1736437836021,-983.33,9.799e-05,2]
[348299205,1736437836031,-5794.24,9.799e-05,2]
[348299206,1736437836040,-14296.49,9.799e-05,2]
[348299207,1736437836049,-500.0,9.799e-05,2]
[348299208,1736437836060,-500.0,9.799e-05,2]
[348299209,1736437836070,-898.9,9.799e-05,2]
[348299210,1736437836079,-1528.55,9.799e-05,2]
[348299211,1736437836089,-624.99,9.799e-05,2]
[348299212,1736437836098,-313.84335983,9.799e-05,2]
[348299213,1736437836108,-3643.93,9.799e-05,2]
[348299214,1736437836118,-605.09,9.799e-05,2]
[348299215,1736437836127,-500.0,9.799e-05,2]
[348299216,1736437836137,-4925.1,9.799e-05,2]
[348299217,1736437836146,-500.0,9.799e-05,2]
[348299218,1736437836156,-500.0,9.799e-05,2]
[348299219,1736437836166,-1217.85,9.799e-05,2]
[348299220,1736437836175,-613.97,9.799e-05,2]
[348299221,1736437836184,-2632.12,9.799e-05,2]
[348299222,1736437836193,-500.0,9.799e-05,2]
[348299223,1736437836203,-500.0,9.799e-05,2]
[348299224,1736437836212,-3990.22,9.799e-05,2]
[348299225,1736437836222,-4455.73,9.799e-05,2]
[348299226,1736437836231,-500.0,9.799e-05,2]
[348299227,1736437836241,-765.44,9.799e-05,2]
[348299228,1736437836250,-2517.35,9.799e-05,2]
[348299229,1736437836260,-943.98,9.799e-05,2]
[348299230,1736437836269,-500.0,9.799e-05,2]
[348299231,1736437836277,-1436.41,9.799e-05,2]
[348299232,1736437836287,-7781.13,9.799e-05,2]
[348299233,1736437836296,-805.59,9.799e-05,2]
[348299234,1736437836305,-1045.51,9.799e-05,2]
[348299235,1736437836318,-650.15,9.799e-05,2]
[348299236,1736437836327,-2133.22,9.799e-05,2]
[348299237,1736437836337,-1302.2,9.799e-05,2]
[348299238,1736437836350,-500.0,9.799e-05,2]
[348299239,1736437836360,-1977.61,9.799e-05,2]
[348299240,1736437836369,-500.0,9.799e-05,2]
[348299241,1736437836380,-500.0,9.799e-05,2]
[348299242,1736437836390,-972.18,9.799e-05,2]
[348299243,1736437836400,-1925.3,9.799e-05,2]
[348299244,1736437836410,-1089.85,9.799e-05,2]
[348299245,1736437836420,-1352.09,9.799e-05,2]
[348299246,1736437836430,-1347.28,9.799e-05,2]
[348299247,1736437836439,-1565.14,9.799e-05,2]
[348299248,1736437836448,-1764.76,9.799e-05,2]
[348299249,1736437836457,-834.07,9.799e-05,2]
[348299250,1736437836465,-500.0,9.799e-05,2]
[348299251,1736437836473,-4763.78,9.799e-05,2]
[348299252,1736437836483,-2466.4,9.799e-05,2]
[348299253,1736437836493,-556.67,9.799e-05,2]
[348299254,1736437836502,-500.0,9.799e-05,2]
[348299255,1736437836513,-1351.16,9.799e-05,2]
[348299256,1736437836522,-500.0,9.799e-05,2]
[348299257,1736437836531,-500.0,9.799e-05,2]
[348299258,1736437836541,-272732.00717591,9.8e-05,2]
[348299259,1736437837339,-500.0,9.798e-05,2]
[348299260,1736437837349,-500.0,9.799e-05,2]
[348299261,1736437837359,-480444.89864091,9.8e-05,2]
[348299262,1736437837368,-150.0,9.825e-05,2]
[348299263,1736437837379,-150.0,9.836e-05,2]
[348299264,1736437837388,-979.7,9.836e-05,2]
[348299265,1736437837397,-150.0,9.862e-05,2]
[348299266,1736437837406,-37115.4614,9.876e-05,2]
[348299267,1736437837415,-45587.7619,9.876e-05,2]
[348299268,1736437837424,-272965.9435,9.876e-05,2]
[348299269,1736437837432,-3166.5811,9.876e-05,2]
[348299270,1736437837441,-150.0,9.888e-05,2]
[348299271,1736437837450,-150.0,9.898e-05,2]
[348299272,1736437837459,-150.0,9.934e-05,2]
[348299273,1736437837469,-150.0,9.97e-05,2]
[348299274,1736437837478,-3164.28399501,9.971e-05,2]
[348299275,1736437837487,-1612.66610083,9.971e-05,2]
[348299276,1736437837497,-200.0,9.971e-05,2]
[348299277,1736437837507,-1483.15662404,9.972e-05,2]
[348299278,1736437837516,-1483.15662404,9.972e-05,2]
[348299279,1736437837525,-5590.41219346,9.972e-05,2]
[348299280,1736437837534,-303.01731203,9.973e-05,2]
[348299281,1736437837543,-356.88874282,9.973e-05,2]
[348299282,1736437837552,-151.3650633,9.973e-05,2]
[348299283,1736437837564,-3164.28399501,9.974e-05,2]
[348299284,1736437837573,-4910.55170426,9.974e-05,2]
[348299285,1736437837582,-500.0,9.975e-05,2]
[348299286,1736437837591,-500.0,9.975e-05,2]
[348299287,1736437837600,-500.0,9.975e-05,2]
[348299288,1736437837609,-500.0,9.975e-05,2]
[348299289,1736437837618,-500.0,9.975e-05,2]
[348299290,1736437837626,-500.0,9.975e-05,2]
[348299291,1736437837636,-500.0,9.975e-05,2]
[348299292,1736437837645,-500.0,9.975e-05,2]
[348299293,1736437837654,-500.0,9.975e-05,2]
[348299294,1736437837663,-500.0,9.975e-05,2]
[348299295,1736437837672,-500.0,9.975e-05,2]
[348299296,1736437837682,-500.0,9.975e-05,2]
[348299297,1736437837692,-500.0,9.975e-05,2]
[348299298,1736437837703,-500.0,9.975e-05,2]
[348299299,1736437837712,-500.0,9.975e-05,2]
[348299300,1736437837721,-500.0,9.975e-05,2]
[348299301,1736437837731,-500.0,9.975e-05,2]
[348299302,1736437837740,-500.0,9.975e-05,2]
[348299303,1736437837750,-500.0,9.975e-05,2]
[348299304,1736437837760,-500.0,9.975e-05,2]
[348299305,1736437837770,-500.0,9.975e-05,2]
[348299306,1736437837780,-500.0,9.975e-05,2]
[348299307,1736437837790,-500.0,9.975e-05,2]
[348299308,1736437837800,-500.0,9.975e-05,2]
[348299310,1736437837811,-500.0,9.975e-05,2]
[348299311,1736437837823,-500.0,9.975e-05,2]
[348299312,1736437837833,-500.0,9.975e-05,2]
[348299313,1736437837843,-500.0,9.975e-05,2]
[348299314,1736437837853,-500.0,9.975e-05,2]
[348299315,1736437837863,-500.0,9.975e-05,2]
[348299316,1736437837873,-500.0,9.975e-05,2]
[348299317,1736437837882,-500.0,9.975e-05,2]
[348299318,1736437837892,-500.0,9.975e-05,2]
[348299319,1736437837901,-500.0,9.975e-05,2]
[348299320,1736437837911,-500.0,9.975e-05,2]
[348299321,1736437837920,-500.0,9.975e-05,2]
[348299322,1736437837930,-500.0,9.975e-05,2]
[348299323,1736437837940,-500.0,9.975e-05,2]
[348299324,1736437837950,-285.30898531,9.975e-05,2]
[348299325,1736437837960,-500.0,9.975e-05,2]
[348299326,1736437837970,-500.0,9.975e-05,2]
[348299327,1736437837979,-500.0,9.975e-05,2]
[348299328,1736437837989,-500.0,9.975e-05,2]
[348299329,1736437837999,-500.0,9.975e-05,2]
[348299330,1736437838008,-500.0,9.975e-05,2]
[348299331,1736437838018,-501.31978582,9.975e-05,2]
[348299332,1736437838029,-500.0,9.975e-05,2]
[348299333,1736437838039,-500.0,9.975e-05,2]
[348299334,1736437838048,-500.0,9.975e-05,2]
[348299335,1736437838058,-500.0,9.975e-05,2]
[348299336,1736437838072,-500.0,9.975e-05,2]
[348299337,1736437838082,-500.0,9.975e-05,2]
[348299338,1736437838091,-500.0,9.975e-05,2]
[348299339,1736437838101,-500.0,9.975e-05,2]
[348299340,1736437838111,-500.0,9.975e-05,2]
[348299341,1736437838120,-500.0,9.975e-05,2]
[348299342,1736437838130,-500.0,9.975e-05,2]
[348299343,1736437838140,-500.0,9.975e-05,2]
[348299344,1736437838150,-548.02900469,9.975e-05,2]
[348299345,1736437838160,-500.0,9.975e-05,2]
[348299346,1736437838169,-500.0,9.975e-05,2]
[348299347,1736437838179,-500.0,9.975e-05,2]
[348299348,1736437838189,-500.0,9.975e-05,2]
[348299349,1736437838198,-500.0,9.975e-05,2]
[348299350,1736437838208,-500.0,9.975e-05,2]
[348299351,1736437838218,-500.0,9.975e-05,2]
[348299352,1736437838227,-500.0,9.975e-05,2]
[348299353,1736437838236,-500.0,9.975e-05,2]
[348299354,1736437838247,-500.0,9.975e-05,2]
[348299355,1736437838256,-500.0,9.975e-05,2]
[348299356,1736437838265,-500.0,9.975e-05,2]
[348299357,1736437838274,-500.0,9.975e-05,2]
[348299358,1736437838283,-500.0,9.975e-05,2]
[348299359,1736437838292,-500.0,9.975e-05,2]
[348299360,1736437838301,-500.0,9.975e-05,2]
[348299361,1736437838311,-500.0,9.975e-05,2]
[348299362,1736437838324,-500.0,9.975e-05,2]
[348299363,1736437838334,-500.0,9.975e-05,2]
[348299364,1736437838347,-502.08796493,9.975e-05,2]
[348299365,1736437838356,-500.0,9.975e-05,2]
[348299366,1736437838365,-500.0,9.975e-05,2]
[348299367,1736437838374,-500.0,9.975e-05,2]
[348299368,1736437838385,-500.0,9.975e-05,2]
[348299369,1736437838394,-500.0,9.975e-05,2]
[348299370,1736437838405,-500.0,9.975e-05,2]
[348299371,1736437838416,-500.0,9.975e-05,2]
[348299372,1736437838426,-500.0,9.975e-05,2]
[348299373,1736437838436,-500.0,9.975e-05,2]
[348299376,1736437838445,-500.0,9.975e-05,2]
[348299379,1736437838455,-500.0,9.975e-05,2]
[348299382,1736437838464,-500.0,9.975e-05,2]
[348299385,1736437838473,-500.0,9.975e-05,2]
[348299387,1736437838483,-554.57343114,9.975e-05,2]
[348299390,1736437838492,-500.0,9.975e-05,2]
[348299393,1736437838502,-500.0,9.975e-05,2]
[348299395,1736437838511,-500.0,9.975e-05,2]
[348299397,1736437838521,-500.0,9.975e-05,2]
[348299399,1736437838530,-500.0,9.975e-05,2]
[348299401,1736437838540,-182.6104028,9.975e-05,2]
[348299403,1736437838550,-500.0,9.975e-05,2]
[348299405,1736437838559,-569.87751083,9.975e-05,2]
[348299407,1736437838573,-500.0,9.975e-05,2]
[348299409,1736437838583,-500.0,9.975e-05,2]
[348299411,1736437838593,-500.0,9.975e-05,2]
[348299413,1736437838602,-500.0,9.975e-05,2]
[348299415,1736437838613,-500.0,9.975e-05,2]
[348299417,1736437838623,-500.0,9.975e-05,2]
[348299419,1736437838632,-865.87,9.975e-05,2]
[348299421,1736437838641,-500.0,9.975e-05,2]
[348299424,1736437838652,-500.0,9.975e-05,2]
[348299425,1736437838661,-500.0,9.975e-05,2]
[348299428,1736437838671,-500.0,9.975e-05,2]
[348299429,1736437838680,-500.0,9.975e-05,2]
[348299431,1736437838690,-170.23986771,9.975e-05,2]
[348299433,1736437838699,-500.0,9.975e-05,2]
[348299435,1736437838710,-500.0,9.975e-05,2]
[348299438,1736437838721,-500.0,9.975e-05,2]
[348299440,1736437838730,-500.0,9.975e-05,2]
[348299441,1736437838740,-500.0,9.975e-05,2]
[348299444,1736437838749,-500.0,9.975e-05,2]
[348299445,1736437838759,-500.0,9.975e-05,2]
[348299447,1736437838768,-500.0,9.975e-05,2]
[348299449,1736437838777,-500.0,9.975e-05,2]
[348299451,1736437838786,-500.0,9.975e-05,2]
[348299453,1736437838796,-500.0,9.975e-05,2]
[348299455,1736437838805,-500.0,9.975e-05,2]
[348299457,1736437838818,-500.0,9.975e-05,2]
[348299459,1736437838827,-500.0,9.975e-05,2]
[348299461,1736437838836,-500.0,9.975e-05,2]
[348299463,1736437838846,-500.0,9.975e-05,2]
[348299465,1736437838855,-500.0,9.975e-05,2]
[348299493,1736437839097,-500.0,9.975e-05,2]
[348299495,1736437839108,-500.0,9.975e-05,2]
[348299497,1736437839117,-500.0,9.975e-05,2]
[348299499,1736437839127,-566.81546513,9.975e-05,2]
[348299501,1736437839136,-500.0,9.975e-05,2]
[348299503,1736437839145,-606.58,9.975e-05,2]
[348299505,1736437839154,-500.0,9.975e-05,2]
[348299507,1736437839164,-500.0,9.975e-05,2]
[348299509,1736437839173,-500.0,9.975e-05,2]
[348299511,1736437839183,-501.79615603,9.975e-05,2]
[348299513,1736437839192,-500.0,9.975e-05,2]
[348299515,1736437839201,-500.0,9.975e-05,2]
[348299517,1736437839210,-500.0,9.975e-05,2]
[348299518,1736437839219,-500.0,9.975e-05,2]
[348299520,1736437839229,-500.0,9.975e-05,2]
[348299523,1736437839239,-500.0,9.975e-05,2]
[348299525,1736437839249,-500.0,9.975e-05,2]
[348299527,1736437839259,-500.0,9.975e-05,2]
[348299529,1736437839268,-500.0,9.975e-05,2]
[348299531,1736437839278,-500.0,9.975e-05,2]
[348299533,1736437839288,-500.0,9.975e-05,2]
[348299535,1736437839297,-500.0,9.975e-05,2]
[348299537,1736437839306,-500.0,9.975e-05,2]
[348299538,1736437839317,-500.0,9.975e-05,2]
[348299540,1736437839327,-500.0,9.975e-05,2]
[348299543,1736437839338,-500.0,9.975e-05,2]
[348299544,1736437839349,-500.0,9.975e-05,2]
[348299546,1736437839358,-500.0,9.975e-05,2]
[348299547,1736437839367,-500.0,9.975e-05,2]
[348299548,1736437839377,-500.0,9.975e-05,2]
[348299549,1736437839387,-500.0,9.975e-05,2]
[348299550,1736437839397,-500.0,9.975e-05,2]
[348299551,1736437839407,-292.49936421,9.975e-05,2]
[348299552,1736437839417,-500.0,9.975e-05,2]
[348299553,1736437839426,-500.0,9.975e-05,2]
[348299554,1736437839435,-500.0,9.975e-05,2]
[348299555,1736437839444,-500.0,9.975e-05,2]
[348299556,1736437839453,-500.0,9.975e-05,2]
[348299558,1736437839463,-500.0,9.975e-05,2]
[348299560,1736437839472,-500.0,9.975e-05,2]
[348299562,1736437839485,-500.0,9.975e-05,2]
[348299564,1736437839495,-500.0,9.975e-05,2]
[348299566,1736437839504,-500.0,9.975e-05,2]
[348299568,1736437839513,-500.0,9.975e-05,2]
[348299570,1736437839523,-667.65,9.975e-05,2]
[348299572,1736437839533,-500.0,9.975e-05,2]
[348299574,1736437839542,-500.0,9.975e-05,2]
[348299576,1736437839550,-500.0,9.975e-05,2]
[348299578,1736437839559,-500.0,9.975e-05,2]
[348299580,1736437839571,-500.0,9.975e-05,2]
[348299582,1736437839578,-500.0,9.975e-05,2]
[348299584,1736437839588,-500.0,9.975e-05,2]
[348299586,1736437839597,-500.0,9.975e-05,2]
[348299588,1736437839605,-500.0,9.975e-05,2]
[348299590,1736437839613,-500.0,9.975e-05,2]
[348299592,1736437839622,-500.0,9.975e-05,2]
[348299594,1736437839630,-500.0,9.975e-05,2]
[348299597,1736437839639,-500.0,9.975e-05,2]
[348299599,1736437839648,-500.0,9.975e-05,2]
[348299600,1736437839656,-500.0,9.975e-05,2]
[348299601,1736437839664,-500.0,9.975e-05,2]
[348299603,1736437839672,-500.0,9.975e-05,2]
[348299605,1736437839680,-500.0,9.975e-05,2]
[348299607,1736437839689,-500.0,9.975e-05,2]
[348299608,1736437839698,-500.0,9.975e-05,2]
[348299610,1736437839708,-500.0,9.975e-05,2]
[348299612,1736437839717,-500.0,9.975e-05,2]
[348299614,1736437839726,-500.0,9.975e-05,2]
[348299616,1736437839735,-500.0,9.975e-05,2]
[348299618,1736437839744,-500.0,9.975e-05,2]
[348299620,1736437839752,-503.90641508,9.975e-05,2]
[348299622,1736437839762,-537.16,9.975e-05,2]
[348299624,1736437839772,-500.0,9.975e-05,2]
[348299625,1736437839782,-500.82659125,9.975e-05,2]
[348299627,1736437839794,-792.39,9.975e-05,2]
[348299629,1736437839803,-500.0,9.975e-05,2]
[348299631,1736437839816,-500.0,9.975e-05,2]
[348299633,1736437839827,-500.0,9.975e-05,2]
[348299635,1736437839836,-500.0,9.975e-05,2]
[348299637,1736437839846,-500.0,9.975e-05,2]
[348299639,1736437839855,-500.0,9.975e-05,2]
[348299641,1736437839865,-500.0,9.975e-05,2]
[348299643,1736437839876,-500.0,9.975e-05,2]
[348299645,1736437839886,-500.0,9.975e-05,2]
[348299646,1736437839896,-500.0,9.975e-05,2]
[348299648,1736437839905,-500.0,9.975e-05,2]
[348299650,1736437839915,-490.66319289,9.975e-05,2]
[348299652,1736437839926,-500.0,9.975e-05,2]
[348299654,1736437839936,-500.0,9.975e-05,2]
[348299655,1736437839946,-500.0,9.975e-05,2]
[348299657,1736437839955,-500.0,9.975e-05,2]
[348299659,1736437839965,-500.0,9.975e-05,2]
[348299661,1736437839974,-500.0,9.975e-05,2]
[348299663,1736437839983,-500.0,9.975e-05,2]
[348299665,1736437839992,-500.0,9.975e-05,2]
[348299667,1736437840001,-503.9150291,9.975e-05,2]
[348299669,1736437840010,-500.0,9.975e-05,2]
[348299671,1736437840019,-505.35,9.975e-05,2]